Workbook

Sheet QuickBooks Desktop Export Tips

Sheet Sheet1
H1: Type | J1: Date | L1: Num | N1: Name | P1: Memo | R1: Split | T1: Amount | V1: Balance
B2: 131 · Cash- | V2: 665498.39
C3: 131.1 · Cash on Hand- | V3: 0
C4: Total 131.1 · Cash on Hand- | V4: =V3 -> 0
C5: 131.10 · REGIONS-HICKORY O&M | V5: 0
C6: Total 131.10 · REGIONS-HICKORY O&M | V6: =V5 -> 0
C7: 131.11 · REGIONS-HICKORY RESERVE | V7: 0
C8: Total 131.11 · REGIONS-HICKORY RESERVE | V8: =V7 -> 0
C9: 131.12 · REGIONS-HICKORY CUSTOMER DEP | V9: 0
C10: Total 131.12 · REGIONS-HICKORY CUSTOMER DEP | V10: =V9 -> 0
C11: 131.2 · FNB-O&M | V11: 119996.28
H12: Deposit | J12: 2024-01-02 | P12: Deposit | R12: 413 · Utility Plant Leased to Others | T12: 700 | V12: =ROUND(V11+T12,5) -> 120696.28
H13: Check | J13: 2024-01-05 | L13: AW | N13: WK&T | R13: 675 · Miscellaneous Expense | T13: -20.76 | V13: 120675.52
H14: Check | J14: 2024-01-08 | L14: aw | N14: KENTUCKY STATE TREASURER | R14: -SPLIT- | T14: -500 | V14: 120175.52
H15: Liability Check | J15: 2024-01-10 | L15: 6100 | N15: GRAVES COUNTY TREASURER | R15: 238 · Payroll Liabilities | T15: -54 | V15: 120121.52
H16: Paycheck | J16: 2024-01-10 | L16: 6093 | R16: -SPLIT- | T16: -435.37 | V16: 119686.15
H17: Paycheck | J17: 2024-01-10 | L17: 6094 | R17: -SPLIT- | T17: -385.37 | V17: 119300.78
H18: Paycheck | J18: 2024-01-10 | L18: 6095 | R18: -SPLIT- | T18: -382.33 | V18: 118918.45
H19: Paycheck | J19: 2024-01-10 | L19: 6096 | R19: -SPLIT- | T19: -375.37 | V19: 118543.08
H20: Paycheck | J20: 2024-01-10 | L20: 6097 | R20: -SPLIT- | T20: -435.37 | V20: 118107.71
H21: Paycheck | J21: 2024-01-10 | L21: 6098 | R21: -SPLIT- | T21: -385.37 | V21: 117722.34
H22: Paycheck | J22: 2024-01-10 | L22: 6099 | R22: -SPLIT- | T22: -435.37 | V22: 117286.97
H23: Bill Pmt -Check | J23: 2024-01-10 | L23: 6101 | N23: GRAVES COUNTY WATER DISTRICT | R23: 20000 · Accounts Payable | T23: -20.91 | V23: 117266.06
H24: Bill Pmt -Check | J24: 2024-01-10 | L24: 6102 | N24: HAWKINS INC | R24: 20000 · Accounts Payable | T24: -2884.22 | V24: 114381.84
H25: Bill Pmt -Check | J25: 2024-01-10 | L25: 6103 | N25: MAYFIELD ELECTRIC & WATER SYSTEMS | R25: 20000 · Accounts Payable | T25: -19785.62 | V25: 94596.22
H26: Bill Pmt -Check | J26: 2024-01-10 | L26: 6104 | N26: VERIZON WIRELESS | R26: 20000 · Accounts Payable | T26: -155.94 | V26: 94440.28
H27: Bill Pmt -Check | J27: 2024-01-10 | L27: 6105 | N27: WATER MANAGEMENT SERVICES | R27: 20000 · Accounts Payable | T27: -1210 | V27: 93230.28
H28: Check | J28: 2024-01-10 | L28: AW | N28: ATMOS ENERGY | R28: 675 · Miscellaneous Expense | T28: -114.1 | V28: 93116.18
H29: Check | J29: 2024-01-18 | L29: AW | N29: KENTUCKY REVENUE CABINET | R29: 241 · Tax Collections Payable | T29: -1218.98 | V29: 91897.2
H30: Check | J30: 2024-01-19 | L30: AW | N30: KENTUCKY STATE TREASURER | R30: 241 · Tax Collections Payable | T30: -4283.91 | V30: 87613.29
H31: Deposit | J31: 2024-01-19 | P31: Deposit | R31: -SPLIT- | T31: 188879.2 | V31: 276492.49
H32: General Journal | J32: 2024-01-22 | L32: 1238 | R32: -SPLIT- | T32: -7235 | V32: 269257.49
H33: General Journal | J33: 2024-01-22 | L33: 1238 | R33: 131.2 · FNB-O&M | T33: -1825 | V33: 267432.49
H34: General Journal | J34: 2024-01-22 | L34: 1238 | R34: 131.2 · FNB-O&M | T34: -9400 | V34: 258032.49
H35: General Journal | J35: 2024-01-22 | L35: 1238 | R35: 131.2 · FNB-O&M | T35: -2110 | V35: 255922.49
H36: General Journal | J36: 2024-01-22 | L36: 1238 | R36: 131.2 · FNB-O&M | T36: -3075 | V36: 252847.49
H37: General Journal | J37: 2024-01-22 | L37: 1238 | R37: 131.2 · FNB-O&M | T37: -705 | V37: 252142.49
H38: Bill Pmt -Check | J38: 2024-01-22 | L38: 6106 | N38: DENTON LAW FIRM, PLLC | R38: 20000 · Accounts Payable | T38: -1677.83 | V38: 250464.66
H39: Bill Pmt -Check | J39: 2024-01-22 | L39: 6107 | N39: HAWKINS INC | R39: 20000 · Accounts Payable | T39: -1980.95 | V39: 248483.71
H40: Bill Pmt -Check | J40: 2024-01-22 | L40: 6108 | N40: KENTUCKY811 | R40: 20000 · Accounts Payable | T40: -358.5 | V40: 248125.21
H41: Bill Pmt -Check | J41: 2024-01-22 | L41: 6109 | N41: MAYFIELD ELECTRIC & WATER SYSTEMS | R41: 20000 · Accounts Payable | T41: -114669.91 | V41: 133455.3
H42: Bill Pmt -Check | J42: 2024-01-22 | L42: 6110 | N42: PACE ANALYTICAL SERVICES, LLC | R42: 20000 · Accounts Payable | T42: -2775.3 | V42: 130680
H43: Bill Pmt -Check | J43: 2024-01-22 | L43: 6111 | N43: STOLL KEENON OGDEN PLLC | R43: 20000 · Accounts Payable | T43: -1211.25 | V43: 129468.75
H44: Bill Pmt -Check | J44: 2024-01-22 | L44: 6113 | N44: PRO TREESERVICE INC. | R44: 20000 · Accounts Payable | T44: -2700 | V44: 126768.75
H45: Liability Check | J45: 2024-01-23 | L45: 6114 | N45: KENTUCKY STATE TREASURER | P45: 327981 | R45: 238 · Payroll Liabilities | T45: -321.21 | V45: 126447.54
H46: Check | J46: 2024-01-26 | L46: AW | N46: JACKSON PURCHASE ENERGY CORP | R46: 615 · Purchased Power | T46: -31.26 | V46: 126416.28
H47: Check | J47: 2024-01-26 | L47: AW | N47: JACKSON PURCHASE ENERGY CORP | R47: 615 · Purchased Power | T47: -26.34 | V47: 126389.94
H48: Check | J48: 2024-01-31 | L48: AW | N48: WEST KY RURAL ELECTRIC COOP | R48: -SPLIT- | T48: -12145.05 | V48: 114244.89
H49: Deposit | J49: 2024-01-31 | P49: Interest | R49: 419 · Interest & Dividend Income | T49: 270.07 | V49: 114514.96
H50: Check | J50: 2024-02-05 | L50: AW | N50: WK&T | R50: 675 · Miscellaneous Expense | T50: -20.76 | V50: 114494.2
H51: Deposit | J51: 2024-02-09 | P51: Deposit | R51: 413 · Utility Plant Leased to Others | T51: 700 | V51: 115194.2
H52: Paycheck | J52: 2024-02-15 | L52: 6115 | R52: -SPLIT- | T52: -435.37 | V52: 114758.83
H53: Paycheck | J53: 2024-02-15 | L53: 6116 | R53: -SPLIT- | T53: -385.37 | V53: 114373.46
H54: Paycheck | J54: 2024-02-15 | L54: 6117 | R54: -SPLIT- | T54: -382.33 | V54: 113991.13
H55: Paycheck | J55: 2024-02-15 | L55: 6118 | R55: -SPLIT- | T55: -375.37 | V55: 113615.76
H56: Paycheck | J56: 2024-02-15 | L56: 6119 | R56: -SPLIT- | T56: -435.37 | V56: 113180.39
H57: Paycheck | J57: 2024-02-15 | L57: 6120 | R57: -SPLIT- | T57: -385.37 | V57: 112795.02
H58: Paycheck | J58: 2024-02-15 | L58: 6121 | R58: -SPLIT- | T58: -435.37 | V58: 112359.65
H59: Bill Pmt -Check | J59: 2024-02-15 | L59: 6122 | N59: GRAVES COUNTY WATER DISTRICT | R59: 20000 · Accounts Payable | T59: -20.91 | V59: 112338.74
H60: Bill Pmt -Check | J60: 2024-02-15 | L60: 6123 | N60: HAWKINS INC | R60: 20000 · Accounts Payable | T60: -8420.79 | V60: 103917.95
H61: Bill Pmt -Check | J61: 2024-02-15 | L61: 6124 | N61: KENTUCKY811 | R61: 20000 · Accounts Payable | T61: -285 | V61: 103632.95
H62: Bill Pmt -Check | J62: 2024-02-15 | L62: 6125 | N62: MAYFIELD ELECTRIC & WATER SYSTEMS | R62: 20000 · Accounts Payable | T62: -25664.48 | V62: 77968.47
H63: Bill Pmt -Check | J63: 2024-02-15 | L63: 6126 | N63: PACE ANALYTICAL SERVICES, LLC | R63: 20000 · Accounts Payable | T63: -2607.2 | V63: 75361.27
H64: Bill Pmt -Check | J64: 2024-02-15 | L64: 6127 | N64: PADUCAH BATTERY SUPPLY | R64: 20000 · Accounts Payable | T64: -490 | V64: 74871.27
H65: Bill Pmt -Check | J65: 2024-02-15 | L65: 6128 | N65: RICK'S ELECTRIC | R65: 20000 · Accounts Payable | T65: -2300 | V65: 72571.27
H66: Bill Pmt -Check | J66: 2024-02-15 | L66: 6129 | N66: UNITED PROPANE GAS | R66: 20000 · Accounts Payable | T66: -572.94 | V66: 71998.33
H67: Bill Pmt -Check | J67: 2024-02-15 | L67: 6130 | N67: VERIZON WIRELESS | R67: 20000 · Accounts Payable | T67: -515.93 | V67: 71482.4
H68: Liability Check | J68: 2024-02-15 | L68: aw | N68: United States Treasury | P68: 26-2993243 | R68: -SPLIT- | T68: -737.5 | V68: 70744.9
H69: Liability Check | J69: 2024-02-15 | L69: aw | N69: United States Treasury | P69: 26-2993243 | R69: -SPLIT- | T69: -737.5 | V69: 70007.4
H70: Check | J70: 2024-02-16 | L70: AW | N70: KENTUCKY STATE TREASURER | R70: 241 · Tax Collections Payable | T70: -4325.62 | V70: 65681.78
H71: Check | J71: 2024-02-16 | L71: AW | N71: KENTUCKY REVENUE CABINET | R71: 241 · Tax Collections Payable | T71: -1200.89 | V71: 64480.89
H72: Deposit | J72: 2024-02-16 | P72: Deposit | R72: -SPLIT- | T72: 183232.53 | V72: 247713.42
H73: General Journal | J73: 2024-02-16 | L73: 1246 | R73: -SPLIT- | T73: -7275 | V73: 240438.42
H74: General Journal | J74: 2024-02-16 | L74: 1246 | R74: 131.2 · FNB-O&M | T74: -1830 | V74: 238608.42
H75: General Journal | J75: 2024-02-16 | L75: 1246 | R75: 131.2 · FNB-O&M | T75: -9385 | V75: 229223.42
H76: General Journal | J76: 2024-02-16 | L76: 1246 | R76: 131.2 · FNB-O&M | T76: -2110 | V76: =ROUND(V75+T76,5) -> 227113.42
H77: General Journal | J77: 2024-02-16 | L77: 1246 | R77: 131.2 · FNB-O&M | T77: -2975 | V77: 224138.42
H78: General Journal | J78: 2024-02-16 | L78: 1246 | R78: 131.2 · FNB-O&M | T78: -695 | V78: 223443.42
H79: Bill Pmt -Check | J79: 2024-02-26 | L79: 6131 | N79: DENTON LAW FIRM, PLLC | R79: 20000 · Accounts Payable | T79: -1012.5 | V79: 222430.92
H80: Bill Pmt -Check | J80: 2024-02-26 | L80: 6132 | N80: G & L TANK SANDBLASTING AND COATINGS LLC | R80: 20000 · Accounts Payable | T80: -321830.7 | V80: -99399.78
H81: Bill Pmt -Check | J81: 2024-02-26 | L81: 6133 | N81: HAWKINS INC | R81: 20000 · Accounts Payable | T81: -1109.62 | V81: -100509.4
H82: Bill Pmt -Check | J82: 2024-02-26 | L82: 6134 | N82: MAYFIELD ELECTRIC & WATER SYSTEMS | R82: 20000 · Accounts Payable | T82: -99840.02 | V82: -200349.42
H83: Bill Pmt -Check | J83: 2024-02-26 | L83: 6135 | N83: RICK'S ELECTRIC | R83: 20000 · Accounts Payable | T83: -488.04 | V83: -200837.46
H84: Bill Pmt -Check | J84: 2024-02-26 | L84: 6136 | N84: VIKOR | R84: 20000 · Accounts Payable | T84: -9459 | V84: -210296.46
H85: Bill Pmt -Check | J85: 2024-02-26 | L85: 6137 | N85: WATER MANAGEMENT SERVICES | R85: 20000 · Accounts Payable | T85: -14960 | V85: -225256.46
H86: Bill Pmt -Check | J86: 2024-02-26 | L86: 6138 | N86: G & L TANK SANDBLASTING AND COATINGS LLC | R86: 20000 · Accounts Payable | T86: -17337.5 | V86: -242593.96
H87: Deposit | J87: 2024-02-27 | P87: Deposit | R87: 422 · Grant Income | T87: 138700 | V87: -103893.96
H88: Deposit | J88: 2024-02-27 | P88: Deposit | R88: 422 · Grant Income | T88: 192589.7 | V88: 88695.74
H89: Deposit | J89: 2024-02-27 | P89: Deposit | R89: 422 · Grant Income | T89: 14960 | V89: 103655.74
H90: Check | J90: 2024-02-28 | L90: AW | N90: JACKSON PURCHASE ENERGY CORP | R90: 615 · Purchased Power | T90: -37.47 | V90: 103618.27
H91: Check | J91: 2024-02-28 | L91: AW | N91: JACKSON PURCHASE ENERGY CORP | R91: 615 · Purchased Power | T91: -33.59 | V91: 103584.68
H92: Check | J92: 2024-02-29 | L92: AW | N92: WEST KY RURAL ELECTRIC COOP | R92: -SPLIT- | T92: -10000.17 | V92: 93584.51
H93: Deposit | J93: 2024-02-29 | P93: Interest | R93: 419 · Interest & Dividend Income | T93: 317.04 | V93: 93901.55
H94: Deposit | J94: 2024-03-04 | P94: Deposit | R94: 413 · Utility Plant Leased to Others | T94: 700 | V94: 94601.55
H95: Check | J95: 2024-03-05 | L95: aw | N95: WK&T | R95: 675 · Miscellaneous Expense | T95: -20.76 | V95: 94580.79
H96: Deposit | J96: 2024-03-06 | P96: Deposit | R96: 422 · Grant Income | T96: 17337.5 | V96: 111918.29
H97: Paycheck | J97: 2024-03-14 | L97: 6139 | R97: -SPLIT- | T97: -435.37 | V97: 111482.92
H98: Paycheck | J98: 2024-03-14 | L98: 6140 | R98: -SPLIT- | T98: -385.37 | V98: 111097.55
H99: Paycheck | J99: 2024-03-14 | L99: 6141 | R99: -SPLIT- | T99: -382.33 | V99: 110715.22
H100: Paycheck | J100: 2024-03-14 | L100: 6142 | R100: -SPLIT- | T100: -375.37 | V100: 110339.85
H101: Paycheck | J101: 2024-03-14 | L101: 6143 | R101: -SPLIT- | T101: -435.37 | V101: 109904.48
H102: Paycheck | J102: 2024-03-14 | L102: 6144 | R102: -SPLIT- | T102: -385.37 | V102: 109519.11
H103: Paycheck | J103: 2024-03-14 | L103: 6145 | R103: -SPLIT- | T103: -435.37 | V103: 109083.74
H104: Bill Pmt -Check | J104: 2024-03-14 | L104: 6146 | N104: 502 EQUIPMENT | R104: 20000 · Accounts Payable | T104: -14454.72 | V104: 94629.02
H105: Bill Pmt -Check | J105: 2024-03-14 | L105: 6147 | N105: GRAVES COUNTY WATER DISTRICT | R105: 20000 · Accounts Payable | T105: -20.91 | V105: 94608.11
H106: Bill Pmt -Check | J106: 2024-03-14 | L106: 6148 | N106: HAWKINS INC | R106: 20000 · Accounts Payable | T106: -10246.58 | V106: 84361.53
H107: Bill Pmt -Check | J107: 2024-03-14 | L107: 6149 | N107: KENTUCKY811 | R107: 20000 · Accounts Payable | T107: -318 | V107: 84043.53
H108: Bill Pmt -Check | J108: 2024-03-14 | L108: 6150 | N108: MAYFIELD ELECTRIC & WATER SYSTEMS | R108: 20000 · Accounts Payable | T108: -29686.25 | V108: 54357.28
H109: Bill Pmt -Check | J109: 2024-03-14 | L109: 6151 | N109: PACE ANALYTICAL SERVICES, LLC | R109: 20000 · Accounts Payable | T109: -3413.3 | V109: 50943.98
H110: Bill Pmt -Check | J110: 2024-03-14 | L110: 6152 | N110: RICK'S ELECTRIC | R110: 20000 · Accounts Payable | T110: -5778.33 | V110: 45165.65
H111: Bill Pmt -Check | J111: 2024-03-14 | L111: 6153 | N111: STOLL KEENON OGDEN PLLC | R111: 20000 · Accounts Payable | T111: -1020.01 | V111: 44145.64
H112: Bill Pmt -Check | J112: 2024-03-14 | L112: 6154 | N112: VERIZON WIRELESS | R112: 20000 · Accounts Payable | T112: -155.94 | V112: 43989.7
H113: Bill Pmt -Check | J113: 2024-03-14 | L113: 6155 | N113: WATER MANAGEMENT SERVICES | R113: 20000 · Accounts Payable | T113: -630 | V113: 43359.7
H114: Check | J114: 2024-03-14 | L114: AW | N114: ATMOS ENERGY | R114: 675 · Miscellaneous Expense | T114: -162.21 | V114: 43197.49
H115: Deposit | J115: 2024-03-15 | P115: Deposit | R115: -SPLIT- | T115: 216393.05 | V115: 259590.54
H116: Check | J116: 2024-03-18 | L116: aw | N116: ATMOS ENERGY | R116: 675 · Miscellaneous Expense | T116: -147.34 | V116: 259443.2
H117: Check | J117: 2024-03-20 | L117: aw | N117: KENTUCKY STATE TREASURER | R117: 241 · Tax Collections Payable | T117: -4949.27 | V117: 254493.93
H118: Check | J118: 2024-03-20 | L118: AW | N118: KENTUCKY REVENUE CABINET | R118: 241 · Tax Collections Payable | T118: -1592.08 | V118: 252901.85
H119: General Journal | J119: 2024-03-25 | L119: 1254 | R119: -SPLIT- | T119: -7220 | V119: 245681.85
H120: General Journal | J120: 2024-03-25 | L120: 1254 | R120: 131.2 · FNB-O&M | T120: -2110 | V120: 243571.85
H121: General Journal | J121: 2024-03-25 | L121: 1254 | R121: 131.2 · FNB-O&M | T121: -1825 | V121: 241746.85
H122: General Journal | J122: 2024-03-25 | L122: 1254 | R122: 131.2 · FNB-O&M | T122: -9380 | V122: 232366.85
H123: General Journal | J123: 2024-03-25 | L123: 1254 | R123: 131.2 · FNB-O&M | T123: -700 | V123: 231666.85
H124: General Journal | J124: 2024-03-25 | L124: 1254 | R124: 131.2 · FNB-O&M | T124: -3020 | V124: 228646.85
H125: Bill Pmt -Check | J125: 2024-03-25 | L125: 6156 | N125: DENTON LAW FIRM, PLLC | R125: 20000 · Accounts Payable | T125: -1685.2 | V125: 226961.65
H126: Bill Pmt -Check | J126: 2024-03-25 | L126: 6157 | N126: MAYFIELD ELECTRIC & WATER SYSTEMS | R126: 20000 · Accounts Payable | T126: -92183.58 | V126: 134778.07
H127: Bill Pmt -Check | J127: 2024-03-25 | L127: 6158 | N127: WATER MANAGEMENT SERVICES | R127: 20000 · Accounts Payable | T127: -160 | V127: 134618.07
H128: Check | J128: 2024-03-27 | L128: aw | N128: JACKSON PURCHASE ENERGY CORP | R128: 615 · Purchased Power | T128: -30.92 | V128: 134587.15
H129: Check | J129: 2024-03-28 | L129: AW | N129: WEST KY RURAL ELECTRIC COOP | R129: -SPLIT- | T129: -2907.12 | V129: 131680.03
H130: Check | J130: 2024-03-31 | L130: aw | N130: WEST KY RURAL ELECTRIC COOP | R130: -SPLIT- | T130: -2088.67 | V130: 129591.36
H131: Deposit | J131: 2024-03-31 | P131: Interest | R131: 419 · Interest & Dividend Income | T131: 699.63 | V131: 130290.99
H132: Check | J132: 2024-04-04 | L132: aw | N132: JACKSON PURCHASE ENERGY CORP | R132: 615 · Purchased Power | T132: -29.99 | V132: 130261
H133: Deposit | J133: 2024-04-04 | P133: Deposit | R133: -SPLIT- | T133: 5250 | V133: 135511
H134: Check | J134: 2024-04-05 | L134: aw | N134: WK&T | R134: 675 · Miscellaneous Expense | T134: -20.76 | V134: 135490.24
H135: Paycheck | J135: 2024-04-10 | L135: 6159 | R135: -SPLIT- | T135: -435.37 | V135: 135054.87
H136: Paycheck | J136: 2024-04-10 | L136: 6160 | R136: -SPLIT- | T136: -385.37 | V136: 134669.5
H137: Paycheck | J137: 2024-04-10 | L137: 6161 | R137: -SPLIT- | T137: -382.33 | V137: 134287.17
H138: Paycheck | J138: 2024-04-10 | L138: 6162 | R138: -SPLIT- | T138: -375.37 | V138: 133911.8
H139: Paycheck | J139: 2024-04-10 | L139: 6163 | R139: -SPLIT- | T139: -435.37 | V139: 133476.43
H140: Paycheck | J140: 2024-04-10 | L140: 6164 | R140: -SPLIT- | T140: -385.37 | V140: =ROUND(V139+T140,5) -> 133091.06
H141: Paycheck | J141: 2024-04-10 | L141: 6165 | R141: -SPLIT- | T141: -435.37 | V141: 132655.69
H142: Bill Pmt -Check | J142: 2024-04-10 | L142: 6166 | N142: GRAVES COUNTY WATER DISTRICT | R142: 20000 · Accounts Payable | T142: -20.91 | V142: 132634.78
H143: Bill Pmt -Check | J143: 2024-04-10 | L143: 6167 | N143: HAWKINS INC | R143: 20000 · Accounts Payable | T143: -3380.9 | V143: 129253.88
H144: Bill Pmt -Check | J144: 2024-04-10 | L144: 6168 | N144: KENTUCKY811 | R144: 20000 · Accounts Payable | T144: -361.5 | V144: 128892.38
H145: Bill Pmt -Check | J145: 2024-04-10 | L145: 6169 | N145: MAYFIELD ELECTRIC & WATER SYSTEMS | R145: 20000 · Accounts Payable | T145: -25916.04 | V145: 102976.34
H146: Bill Pmt -Check | J146: 2024-04-10 | L146: 6170 | N146: PACE ANALYTICAL SERVICES, LLC | R146: 20000 · Accounts Payable | T146: -2688.1 | V146: 100288.24
H147: Bill Pmt -Check | J147: 2024-04-10 | L147: 6171 | N147: RIVES BACKHOE & PLUMBING INC | R147: 20000 · Accounts Payable | T147: -162.8 | V147: 100125.44
H148: Bill Pmt -Check | J148: 2024-04-10 | L148: 6172 | N148: VERIZON WIRELESS | R148: 20000 · Accounts Payable | T148: -155.94 | V148: 99969.5
H149: Liability Check | J149: 2024-04-12 | L149: aw | N149: United States Treasury | P149: 26-2993243 | R149: -SPLIT- | T149: -737.5 | V149: 99232
H150: Check | J150: 2024-04-15 | L150: AW | N150: ATMOS ENERGY | R150: 675 · Miscellaneous Expense | T150: -123.49 | V150: 99108.51
H151: Liability Check | J151: 2024-04-15 | L151: AW | N151: United States Treasury | P151: 26-2993243 | R151: -SPLIT- | T151: -737.5 | V151: 98371.01
H152: Check | J152: 2024-04-19 | L152: AW | N152: KENTUCKY STATE TREASURER | R152: 241 · Tax Collections Payable | T152: -4167.83 | V152: 94203.18
H153: Check | J153: 2024-04-19 | L153: AW | N153: KENTUCKY REVENUE CABINET | R153: 241 · Tax Collections Payable | T153: -1236.71 | V153: 92966.47
H154: Deposit | J154: 2024-04-19 | P154: Deposit | R154: -SPLIT- | T154: 188680.51 | V154: 281646.98
H155: Liability Check | J155: 2024-04-22 | L155: 6173 | N155: GRAVES COUNTY TREASURER | R155: 238 · Payroll Liabilities | T155: -105 | V155: 281541.98
H156: Bill Pmt -Check | J156: 2024-04-22 | L156: 6174 | N156: DENTON LAW FIRM, PLLC | R156: 20000 · Accounts Payable | T156: -1567.7 | V156: 279974.28
H157: Bill Pmt -Check | J157: 2024-04-22 | L157: 6175 | N157: HAWKINS INC | R157: 20000 · Accounts Payable | T157: -4659.33 | V157: 275314.95
H158: Bill Pmt -Check | J158: 2024-04-22 | L158: 6176 | N158: MAYFIELD ELECTRIC & WATER SYSTEMS | R158: 20000 · Accounts Payable | T158: -95914.95 | V158: 179400
H159: Bill Pmt -Check | J159: 2024-04-22 | L159: 6177 | N159: RICK'S ELECTRIC | R159: 20000 · Accounts Payable | T159: -1190.94 | V159: 178209.06
H160: Bill Pmt -Check | J160: 2024-04-22 | L160: 6178 | N160: WATER MANAGEMENT SERVICES | R160: 20000 · Accounts Payable | T160: -480 | V160: 177729.06
H161: General Journal | J161: 2024-04-22 | L161: 1262 | R161: -SPLIT- | T161: -7255 | V161: 170474.06
H162: General Journal | J162: 2024-04-22 | L162: 1262 | R162: 131.2 · FNB-O&M | T162: -1845 | V162: 168629.06
H163: General Journal | J163: 2024-04-22 | L163: 1262 | R163: 131.2 · FNB-O&M | T163: -9415 | V163: 159214.06
H164: General Journal | J164: 2024-04-22 | L164: 1262 | R164: 131.2 · FNB-O&M | T164: -2110 | V164: 157104.06
H165: General Journal | J165: 2024-04-22 | L165: 1262 | R165: 131.2 · FNB-O&M | T165: -3030 | V165: 154074.06
H166: General Journal | J166: 2024-04-22 | L166: 1262 | R166: 131.2 · FNB-O&M | T166: -685 | V166: 153389.06
H167: Deposit | J167: 2024-04-24 | P167: Deposit | R167: 413 · Utility Plant Leased to Others | T167: 1400 | V167: 154789.06
H168: Check | J168: 2024-04-26 | L168: AW | N168: JACKSON PURCHASE ENERGY CORP | R168: 615 · Purchased Power | T168: -29.9 | V168: 154759.16
H169: Check | J169: 2024-04-26 | L169: AW | N169: JACKSON PURCHASE ENERGY CORP | R169: 615 · Purchased Power | T169: -25.67 | V169: 154733.49
H170: Check | J170: 2024-04-30 | L170: AW | N170: WEST KY RURAL ELECTRIC COOP | R170: -SPLIT- | T170: -8735.04 | V170: 145998.45
H171: Check | J171: 2024-04-30 | L171: aw | N171: WEST KY RURAL ELECTRIC COOP | R171: -SPLIT- | T171: -11015.38 | V171: 134983.07
H172: Deposit | J172: 2024-04-30 | P172: Interest | R172: 419 · Interest & Dividend Income | T172: 259.58 | V172: 135242.65
H173: Check | J173: 2024-05-05 | L173: AW | N173: WK&T | R173: 675 · Miscellaneous Expense | T173: -20.76 | V173: 135221.89
H174: Paycheck | J174: 2024-05-09 | L174: 6179 | R174: -SPLIT- | T174: -435.37 | V174: 134786.52
H175: Paycheck | J175: 2024-05-09 | L175: 6180 | R175: -SPLIT- | T175: -385.37 | V175: 134401.15
H176: Paycheck | J176: 2024-05-09 | L176: 6181 | R176: -SPLIT- | T176: -382.33 | V176: 134018.82
H177: Paycheck | J177: 2024-05-09 | L177: 6182 | R177: -SPLIT- | T177: -375.37 | V177: 133643.45
H178: Paycheck | J178: 2024-05-09 | L178: 6183 | R178: -SPLIT- | T178: -435.37 | V178: 133208.08
H179: Paycheck | J179: 2024-05-09 | L179: 6184 | R179: -SPLIT- | T179: -385.37 | V179: 132822.71
H180: Paycheck | J180: 2024-05-09 | L180: 6185 | R180: -SPLIT- | T180: -435.37 | V180: 132387.34
H181: Bill Pmt -Check | J181: 2024-05-09 | L181: 6186 | N181: GRAVES COUNTY WATER DISTRICT | R181: 20000 · Accounts Payable | T181: -20.91 | V181: 132366.43
H182: Bill Pmt -Check | J182: 2024-05-09 | L182: 6187 | N182: MAYFIELD ELECTRIC & WATER SYSTEMS | R182: 20000 · Accounts Payable | T182: -22726.77 | V182: 109639.66
H183: Bill Pmt -Check | J183: 2024-05-09 | L183: 6188 | N183: MURRAY PAVING | R183: 20000 · Accounts Payable | T183: -4575 | V183: 105064.66
H184: Bill Pmt -Check | J184: 2024-05-09 | L184: 6189 | N184: PACE ANALYTICAL SERVICES, LLC | R184: 20000 · Accounts Payable | T184: -6048 | V184: 99016.66
H185: Bill Pmt -Check | J185: 2024-05-09 | L185: 6190 | N185: PRO TREESERVICE INC. | R185: 20000 · Accounts Payable | T185: -2900 | V185: 96116.66
H186: Bill Pmt -Check | J186: 2024-05-09 | L186: 6191 | N186: REDMON, JORDAN | R186: 20000 · Accounts Payable | T186: -1705 | V186: 94411.66
H187: Bill Pmt -Check | J187: 2024-05-09 | L187: 6192 | N187: VERIZON WIRELESS | R187: 20000 · Accounts Payable | T187: -155.94 | V187: 94255.72
H188: Check | J188: 2024-05-13 | L188: AW | N188: ATMOS ENERGY | R188: 675 · Miscellaneous Expense | T188: -105.48 | V188: 94150.24
H189: Bill Pmt -Check | J189: 2024-05-15 | L189: 6193 | N189: KENTUCKY INFRASTRUCTURE AUTHORITY | R189: 20000 · Accounts Payable | T189: -60687.99 | V189: 33462.25
H190: Bill Pmt -Check | J190: 2024-05-15 | L190: 6194 | N190: PEYTON FRICK | R190: 20000 · Accounts Payable | T190: -500 | V190: 32962.25
H191: Bill Pmt -Check | J191: 2024-05-15 | L191: 6195 | N191: TREY MADDING | R191: 20000 · Accounts Payable | T191: -500 | V191: 32462.25
H192: Check | J192: 2024-05-20 | L192: AW | N192: KENTUCKY STATE TREASURER | R192: 241 · Tax Collections Payable | T192: -4434.8 | V192: 28027.45
H193: Check | J193: 2024-05-20 | L193: AW | N193: KENTUCKY REVENUE CABINET | R193: -SPLIT- | T193: -1264.43 | V193: 26763.02
H194: Check | J194: 2024-05-26 | L194: AW | N194: JACKSON PURCHASE ENERGY CORP | R194: 615 · Purchased Power | T194: -30.93 | V194: 26732.09
H195: Bill Pmt -Check | J195: 2024-05-28 | L195: 6200 | N195: DENTON LAW FIRM, PLLC | P195: VOID: | R195: 20000 · Accounts Payable | T195: 0 | V195: 26732.09
H196: Bill Pmt -Check | J196: 2024-05-28 | L196: 6196 | N196: HAWKINS INC | R196: 20000 · Accounts Payable | T196: -8212.09 | V196: 18520
H197: Bill Pmt -Check | J197: 2024-05-28 | L197: 6197 | N197: MAYFIELD ELECTRIC & WATER SYSTEMS | R197: 20000 · Accounts Payable | T197: -72392.19 | V197: -53872.19
H198: Bill Pmt -Check | J198: 2024-05-28 | L198: 6198 | N198: STOLL KEENON OGDEN PLLC | R198: 20000 · Accounts Payable | T198: -13228.14 | V198: -67100.33
H199: Bill Pmt -Check | J199: 2024-05-28 | L199: 6199 | N199: WATER MANAGEMENT SERVICES | R199: 20000 · Accounts Payable | T199: -1920 | V199: -69020.33
H200: Bill Pmt -Check | J200: 2024-05-28 | L200: 6202 | N200: DENTON LAW FIRM, PLLC | R200: 20000 · Accounts Payable | T200: -1831.45 | V200: -70851.78
... 4300 more rows
